bitfinex-derivatives/quotes_ETHF0:USTF0_20250804
["timestamp","ask_amount","ask_price","bid_price","bid_amount"]
[1754312999242,0.3082,3566.6,3566.5,1.8093]
[1754312999540,19.6302,3566.6,3566.5,1.8093]
[1754313000344,0.3082,3566.6,3566.5,1.8093]
[1754313000536,0.2971,3567.3,3566.8,1.1018]
[1754313000737,21.07074,3567.1,3567.0,1.8093]
[1754313001243,21.79632718,3567.1,3567.0,1.3714]
[1754313001437,21.79632718,3567.1,3567.0,0.5374]
[1754313001640,1.4017,3566.9,3566.1,3.5393]
[1754313001839,1.60466,3566.4,3566.3,0.7075]
[1754313002141,1.0439,3566.3,3566.2,0.5374]
[1754313002445,1.63868718,3566.3,3566.2,1.0774]
[1754313003737,1.90428718,3566.3,3566.2,0.5374]
[1754313003934,2.30219,3566.2,3566.1,3.2078]
[1754313004138,2.45567718,3566.2,3566.1,3.2078]
[1754313004341,2.19007718,3566.2,3566.1,4.0776]
[1754313004541,2.45567718,3566.2,3566.1,3.5393]
[1754313005140,2.45567718,3566.2,3566.1,3.2078]
[1754313005550,2.19007718,3566.2,3566.1,3.7452]
[1754313005749,1.46377718,3566.2,3566.1,5.0171]
[1754313006147,1.90237718,3566.2,3566.1,5.0171]
[1754313006542,1.84295,3567.1,3566.7,0.7694]
[1754313006740,2.0365,3566.8,3566.7,1.0774]
[1754313006945,3.16765578,3566.8,3566.7,0.3315]
[1754313007149,2.45558718,3566.8,3566.7,0.3315]
[1754313007840,1.30754,3566.5,3566.4,1.0774]
[1754313008046,21.77562718,3566.5,3566.4,0.3315]
[1754313008446,21.77562718,3566.5,3566.4,1.0774]
[1754313008845,21.77562718,3566.5,3566.4,1.3714]
[1754313011452,21.51002718,3566.5,3566.4,1.3714]
[1754313011948,21.51002718,3566.5,3566.4,1.0774]
[1754313012151,1.7414,3566.4,3566.3,1.61256]
[1754313012349,1.89488718,3566.4,3566.3,1.0518]
[1754313012748,1.63168718,3566.4,3566.3,1.0518]
[1754313013054,1.63168718,3566.4,3566.3,1.7784]
[1754313013452,0.56077,3566.3,3566.1,3.2078]
[1754313013652,0.56077,3566.3,3565.4,1.71027]
[1754313013653,1.30242,3566.0,3565.9,1.3431]
[1754313013857,2.03902,3566.0,3565.9,1.7784]
[1754313014049,2.19250718,3566.0,3565.9,1.0518]
[1754313014245,1.63168718,3566.0,3565.7,3.2078]
[1754313014551,19.317,3566.2,3565.7,4.2596]
[1754313014552,2.19253718,3565.8,3565.7,4.2596]
[1754313014749,21.50853718,3565.8,3565.7,4.2596]
[1754313016157,20.21668718,3565.8,3565.7,4.9862]
[1754313016349,19.6119,3565.8,3565.7,4.9862]
[1754313016551,0.56084,3565.9,3565.8,2.33925]
[1754313016851,20.03132718,3565.9,3565.8,2.33925]
[1754313017154,19.87684,3565.9,3565.8,1.7784]
[1754313018359,19.316,3565.9,3565.8,1.7784]
[1754313019057,0.85668,3566.3,3566.2,1.7784]
[1754313019259,20.17268,3566.3,3566.2,1.7784]
[1754313019457,19.76538718,3566.3,3566.2,2.33918]
[1754313019657,0.44938718,3566.3,3566.2,2.33918]
[1754313019854,19.76538718,3566.3,3566.2,2.33918]
[1754313020259,19.76438718,3566.3,3566.2,2.33918]
[1754313020457,5.28862216,3568.2,3565.7,4.60993]
[1754313020458,0.5607,3566.8,3566.7,1.3436]
[1754313020657,20.8462,3566.8,3566.7,1.7784]
[1754313020958,21.36052925,3566.8,3566.7,1.7784]
[1754313021358,21.64582925,3566.8,3566.7,1.7784]
[1754313022155,21.90902925,3566.8,3566.4,0.308]
[1754313022454,1.89488718,3566.2,3566.1,3.2078]
[1754313022647,20.46728718,3566.2,3565.7,0.56085]
[1754313022854,1.12308718,3565.8,3565.7,0.86935]
[1754313023160,20.43708718,3565.8,3565.7,1.61265]
[1754313023357,20.66038718,3565.8,3565.7,0.5257]
[1754313023558,20.94568718,3565.8,3565.7,0.3085]
[1754313024162,21.20888718,3565.8,3565.7,0.5257]
[1754313024558,21.20888718,3565.8,3565.7,0.8337]
[1754313025363,21.20888718,3565.8,3565.7,0.5257]
[1754313025565,21.20888718,3565.8,3565.7,0.3085]
[1754313027757,20.94568718,3565.8,3565.7,0.3085]
[1754313028361,19.314,3565.8,3565.7,1.7784]
[1754313028575,0.56079,3566.2,3566.1,1.7784]
[1754313028864,0.85162801,3566.5,3566.1,1.7784]
[1754313029163,0.44938718,3566.5,3566.4,2.33915]
[1754313029364,19.313,3566.5,3566.4,2.33915]
[1754313030354,40.379,3566.8,3566.7,0.56071]
[1754313030554,0.4513,3567.4,3567.3,0.4353]
[1754313030758,0.69891526,3567.6,3567.4,0.5606]
[1754313031064,3.2078,3567.8,3567.6,2.03046]
[1754313031267,19.312,3567.7,3567.6,2.33896]
[1754313031462,19.46548718,3567.7,3567.6,2.33896]
[1754313031669,20.94368718,3567.7,3567.6,0.7438]
[1754313032566,1.7414,3567.4,3567.3,0.3085]
[1754313032870,1.4782,3567.2,3567.1,1.0518]
[1754313033167,20.94168718,3567.2,3567.1,1.0518]
[1754313033466,20.94168718,3567.2,3567.1,1.3436]
[1754313033862,20.94168718,3567.2,3567.1,1.7784]
[1754313034565,20.65638718,3567.2,3567.1,1.7784]
[1754313037470,20.94168718,3567.2,3567.1,1.7784]
[1754313037662,20.65638718,3567.2,3567.1,1.7784]
[1754313037859,19.75938718,3567.2,3567.1,1.7784]
[1754313038570,20.21068718,3567.2,3567.1,1.7784]
[1754313038774,19.75938718,3567.2,3567.1,1.7784]
[1754313041772,20.22728718,3567.2,3567.1,1.7784]
[1754313041966,20.66468718,3567.2,3567.1,1.7784]
[1754313042169,20.93848718,3567.2,3567.1,1.7784]
[1754313042869,20.66468718,3567.2,3567.1,1.7784]
[1754313043073,20.44228718,3567.2,3567.1,1.7784]
[1754313043468,19.31,3567.2,3567.1,1.7784]
[1754313048278,0.7761,3567.6,3567.5,0.7256]
[1754313048478,20.44558718,3567.6,3567.5,2.37338]
[1754313048977,20.91978718,3567.6,3567.5,2.37338]
[1754313049379,20.64938718,3567.6,3567.5,2.37338]
[1754313049969,20.91978718,3567.6,3567.5,2.37338]
[1754313050775,0.3082,3567.6,3567.5,2.37338]
[1754313050979,19.3,3567.6,3567.5,2.37338]
[1754313051282,4.1989,3568.2,3568.1,2.37329]
[1754313051471,23.85618718,3568.2,3568.1,2.37329]
[1754313051670,24.12658718,3568.2,3568.1,2.37329]
[1754313052278,0.15348718,3568.2,3568.1,2.37329]
[1754313052479,40.367,3568.9,3568.8,0.97288]
[1754313052684,59.666,3568.9,3568.8,2.37318]
[1754313052983,60.55778718,3568.9,3568.8,2.37318]
[1754313053281,41.25878718,3568.9,3568.8,2.37318]
[1754313053484,60.55678718,3568.9,3568.8,2.37318]
[1754313054582,1.5098,3568.8,3568.7,0.56038]
[1754313054787,1.86708718,3568.4,3568.3,3.2078]
[1754313054990,21.16208718,3568.4,3568.3,3.2078]
[1754313055284,0.727,3568.1,3568.0,0.56049]
[1754313055485,1.4432,3568.0,3567.9,0.88031]
[1754313055685,1.86708718,3568.0,3567.9,0.88031]
[1754313055887,1.7136,3568.0,3567.9,0.88031]
[1754313056490,1.7136,3568.0,3567.9,1.08871]
[1754313056880,1.7136,3568.0,3567.9,0.3198]
[1754313057085,1.4653,3567.7,3567.6,4.62216]
[1754313057286,20.91278718,3567.7,3567.6,4.62216]
[1754313057593,21.72163718,3567.7,3567.6,3.2078]
[1754313057899,1.7136,3567.6,3567.5,0.88037]
[1754313058189,1.86708718,3567.6,3567.5,1.41437]
[1754313059485,1.86708718,3567.6,3567.5,1.61847]
[1754313060093,1.61878718,3567.6,3567.5,1.93157]
[1754313060495,1.61878718,3567.6,3567.5,2.37337]
[1754313060881,1.61878718,3567.6,3567.5,1.93157]
[1754313061083,1.61878718,3567.6,3567.5,1.0579]
[1754313061393,1.61878718,3567.6,3567.5,0.7323]
[1754313061589,1.86708718,3567.6,3567.5,0.7323]
[1754313062188,1.61878718,3567.6,3567.5,1.8128]
[1754313062384,1.4653,3567.6,3567.5,1.8128]
[1754313062687,1.4653,3567.6,3567.4,0.88619]
[1754313062688,1.4653,3567.5,3567.4,0.88619]
[1754313062888,21.0066,3567.5,3567.4,1.09459]
[1754313063088,21.0066,3567.5,3567.4,1.29869]
[1754313063294,20.7583,3567.5,3567.4,2.37339]
[1754313064892,19.805,3567.5,3567.4,0.3198]
[1754313065097,21.14868718,3567.5,3567.4,0.8538]
[1754313065297,21.14868718,3567.5,3567.4,1.0579]
[1754313065792,21.70926718,3567.5,3567.4,1.0579]
[1754313065998,2.26281,3567.3,3567.2,3.2078]
[1754313066193,1.20708,3566.9,3566.8,3.5276]
[1754313066400,21.30116718,3566.9,3566.8,0.5282]
[1754313066599,21.30116718,3566.9,3566.8,0.3198]
[1754313066900,1.85671,3566.7,3566.6,0.3256]
[1754313067198,21.30119718,3566.7,3566.6,0.3256]
[1754313067393,21.30119718,3566.7,3566.6,0.8538]
[1754313067593,21.30119718,3566.7,3566.6,1.371]
[1754313068295,1.0534,3566.4,3566.3,5.0206]
[1754313068497,20.49788718,3566.4,3566.3,5.0206]
[1754313069499,0.5611,3566.8,3566.7,1.8128]
[1754313069797,19.8511,3566.8,3566.7,1.8128]
[1754313070097,20.49688718,3566.8,3566.7,1.8128]
[1754313070794,20.49688718,3566.8,3566.7,0.5282]
[1754313070992,1.00751,3566.7,3566.6,0.6189]
[1754313071199,1.61739718,3566.7,3566.6,0.6189]
[1754313071398,1.61739718,3566.7,3566.6,1.3398]
[1754313071699,2.02989718,3566.7,3566.6,1.3398]
[1754313071890,2.02989718,3566.7,3566.6,0.3141]
[1754313072096,1.21695,3566.4,3566.3,3.2078]
[1754313072299,21.32193718,3566.4,3566.3,3.508]
[1754313072602,20.76118718,3566.4,3566.3,4.2289]
[1754313072800,20.76118718,3566.4,3565.9,0.3187]
[1754313073006,0.15348718,3566.1,3566.0,1.4724]
[1754313073195,19.44548718,3566.1,3566.0,2.35192]
[1754313073496,20.51418718,3566.1,3566.0,1.3398]
[1754313073803,20.76118718,3566.1,3566.0,1.3398]
[1754313074004,20.76118718,3566.1,3566.0,1.7911]
[1754313076508,20.76118718,3566.1,3566.0,1.3398]
[1754313077008,20.51418718,3566.1,3566.0,1.7911]
[1754313077405,20.24508718,3566.1,3566.0,1.7911]
[1754313078898,1.40009,3566.8,3566.7,0.4068]
[1754313079103,20.69409,3566.8,3566.7,0.7209]
[1754313079307,1.62944,3566.5,3566.4,0.7209]
[1754313079503,2.02995718,3566.3,3566.2,3.508]
[1754313079702,21.32295718,3566.3,3566.2,3.508]
[1754313080104,20.51518718,3566.3,3566.2,4.9989]
[1754313080706,20.10268718,3566.3,3566.2,4.9989]
[1754313080910,19.65588718,3566.3,3566.2,4.9989]
[1754313081112,19.44648718,3566.3,3566.2,4.9989]
[1754313081307,19.65588718,3566.3,3566.2,4.9989]
[1754313081713,20.51518718,3566.3,3566.2,4.9989]
[1754313082101,20.76218718,3566.3,3566.2,4.2289]
[1754313082810,20.51518718,3566.3,3566.2,4.9989]
[1754313083413,20.51518718,3566.3,3566.2,1.7911]
[1754313085011,0.56075,3566.5,3566.4,1.7911]
[1754313085217,19.85375,3566.5,3566.4,1.7911]
[1754313085512,1.14277,3566.9,3566.8,0.5235]
[1754313085712,20.24608718,3566.9,3566.8,1.4909]
[1754313086010,19.44648718,3566.9,3566.8,1.7911]
[1754313086211,19.65588718,3566.9,3566.8,1.7911]
[1754313086513,20.51518718,3566.9,3566.8,1.7911]
[1754313086908,1.87644,3566.5,3566.4,3.508]
[1754313087212,21.32192718,3566.5,3566.4,3.508]
[1754313087410,0.4468,3566.0,3565.9,2.35193]
[1754313087614,19.7388,3566.0,3565.9,2.35193]
[1754313087913,19.9482,3566.0,3565.9,2.35193]
[1754313088110,20.0916,3566.0,3565.9,2.35193]
[1754313088310,20.0916,3566.0,3565.9,1.7911]
[1754313088507,19.6647,3566.0,3565.9,1.7911]
[1754313088708,19.292,3566.0,3565.9,1.7911]
[1754313091018,0.1434,3566.9,3566.4,0.5096]
[1754313091222,0.56066,3567.0,3566.8,1.0211]
[1754313091414,19.291,3566.9,3566.8,1.28159]
[1754313091613,19.44448718,3566.9,3566.8,0.7209]
[1754313092017,19.291,3566.9,3566.8,1.7911]
[1754313092318,0.4125,3567.2,3566.7,0.5607]
[1754313092319,0.1434,3567.2,3567.1,0.56064]
[1754313092519,19.4344,3567.2,3567.1,2.05154]
[1754313092718,19.58788718,3567.2,3567.1,2.35174]
[1754313092920,19.79728718,3567.2,3567.1,1.7911]
[1754313093116,20.51318718,3567.2,3567.1,1.3398]
[1754313093315,20.51318718,3567.2,3567.1,1.0211]
[1754313093515,0.6562,3567.0,3566.9,0.56067]
[1754313093716,1.22218718,3567.0,3566.9,0.86087]
[1754313094014,20.3597,3567.0,3566.9,1.38897]
[1754313094211,20.3597,3567.0,3566.9,2.35177]
[1754313094617,20.51318718,3567.0,3566.9,1.38437]
[1754313094915,20.51318718,3567.0,3566.9,0.3002]
[1754313095115,20.76018718,3567.0,3566.9,0.3002]
[1754313095722,20.76018718,3567.0,3566.9,0.8237]
[1754313095922,20.76018718,3567.0,3566.9,1.1424]
[1754313096218,0.2094,3567.1,3567.0,0.77006]
[1754313096412,40.368,3567.3,3567.2,1.28153]
[1754313096617,3.2078,3567.6,3567.5,1.28148]
[1754313096816,22.4968,3567.6,3567.5,2.35168]
[1754313097011,23.71898718,3567.6,3567.5,1.7911]
[1754313098916,23.07718718,3567.6,3567.5,1.7911]
[1754313099111,22.65028718,3567.6,3567.5,1.7911]
[1754313100122,22.85968718,3567.6,3567.5,1.7911]
[1754313100324,19.44248718,3567.6,3567.5,1.7911]
[1754313101010,19.289,3567.6,3567.5,1.7911]
[1754313102012,19.8241,3567.6,3567.5,1.7911]
[1754313102324,20.3098,3567.6,3567.5,1.7911]
[1754313102822,19.289,3567.6,3567.5,1.7911]
[1754313103517,41.0968,3568.3,3568.2,1.8013]
[1754313103717,41.0968,3568.3,3568.0,0.86939]
[1754313103718,1.1773,3568.1,3568.0,0.86939]
[1754313104023,20.9293,3568.1,3568.0,1.0409]
[1754313104325,21.08278718,3568.1,3568.0,1.3436]
[1754313104517,20.58928718,3568.1,3568.0,1.8013]
[1754313104712,20.84708718,3568.1,3568.0,1.8013]
[1754313105917,20.12328718,3568.1,3568.0,1.8013]
[1754313106117,19.43948718,3568.1,3568.0,1.8013]
[1754313106418,20.84708718,3568.1,3568.0,1.8013]
[1754313106622,2.2038,3568.0,3567.9,0.3089]
[1754313106822,2.35728718,3568.0,3567.9,0.3089]
[1754313107123,1.6433,3567.6,3567.5,0.3089]
[1754313107424,20.4338,3567.6,3567.5,1.3436]
[1754313107617,20.84508718,3567.6,3567.5,1.8013]
[1754313108215,21.64135718,3567.6,3567.5,0.8259]
[1754313108425,21.08078718,3567.6,3567.5,0.3089]
[1754313108926,0.9595,3567.5,3567.4,3.76839]
[1754313109127,1.07298718,3567.5,3567.4,3.76839]
[1754313109421,1.79678718,3567.5,3567.4,4.07729]
[1754313109624,1.79678718,3567.5,3567.4,3.76839]
[1754313109822,1.79678718,3567.5,3567.4,0.56059]
[1754313110023,1.79678718,3567.5,3567.4,0.86949]
[1754313110515,0.15348718,3567.5,3567.4,2.36189]
[1754313111117,3.2078,3568.0,3567.9,1.90412]
[1754313111320,24.1331,3568.0,3567.9,0.56052]
[1754313111523,0.6838,3567.2,3567.1,1.27864]
[1754313111721,20.6896,3567.2,3567.1,1.73634]
[1754313112117,20.84308718,3567.2,3567.1,2.36194]
[1754313112332,21.07878718,3567.2,3567.1,1.28484]
[1754313112921,21.07878718,3567.2,3567.1,1.90424]
[1754313113131,20.84308718,3567.2,3567.1,1.90424]
[1754313113930,20.84308718,3567.2,3567.1,1.3436]
[1754313115030,20.84308718,3567.2,3567.1,1.8013]
[1754313116330,21.07878718,3567.2,3567.1,1.3436]
[1754313117421,20.84308718,3567.2,3567.1,1.3436]
[1754313118528,19.43648718,3567.2,3567.1,1.8013]
[1754313118934,20.84408718,3567.2,3567.1,1.8013]
[1754313120833,20.84408718,3567.2,3567.1,1.3436]
[1754313121126,0.6838,3567.0,3566.9,3.2078]
[1754313121331,21.07398718,3567.0,3566.9,3.5167]
[1754313121533,20.84118718,3567.0,3566.9,5.0091]
[1754313122130,21.07398718,3567.0,3566.9,4.0477]
[1754313122434,21.07398718,3567.0,3566.9,3.5167]
[1754313122827,20.84118718,3567.0,3566.9,5.0091]
[1754313123532,21.07398718,3567.0,3566.9,4.5514]
[1754313124536,19.43648718,3567.0,3566.9,5.0091]
[1754313126333,0.15348718,3567.0,3566.9,5.0091]
[1754313126631,1.24434,3567.8,3567.7,1.4846]
[1754313126822,1.24434,3567.8,3567.7,1.8013]
[1754313126823,20.78224,3567.8,3567.7,1.8013]
[1754313127028,21.07438231,3567.8,3567.7,1.8013]
[1754313127334,20.58628718,3567.8,3567.7,1.8013]
[1754313127531,19.43648718,3567.8,3567.7,1.8013]
[1754313127832,20.19368718,3567.8,3567.7,1.8013]
[1754313128530,19.72768718,3567.8,3567.7,1.8013]
[1754313129228,40.93346,3568.3,3567.7,0.6256]
[1754313129429,40.373,3568.3,3568.2,1.3436]
[1754313129636,59.79359639,3568.3,3568.2,1.8013]
[1754313129829,59.94708357,3568.3,3568.2,2.36177]
[1754313130131,0.466,3568.6,3568.5,0.7111]
[1754313130324,19.282,3568.6,3568.5,1.779]
[1754313130528,19.43548718,3568.6,3568.5,1.779]
[1754313131528,19.99589718,3568.6,3568.5,1.779]
[1754313131730,3.76819,3568.8,3568.5,2.33941]
[1754313131930,0.15348718,3568.6,3568.5,1.779]
[1754313132339,19.282,3568.7,3568.6,0.7111]
[1754313132533,19.282,3568.7,3568.6,2.33941]
[1754313132741,1.2364,3569.2,3569.1,0.2008]
[1754313133037,19.9968,3569.2,3569.1,0.5143]
[1754313133234,19.9968,3569.2,3568.8,3.2078]
[1754313133235,2.22923,3569.1,3569.0,0.2071]
[1754313133430,2.38271718,3569.1,3569.0,0.5206]
[1754313133836,1.82238718,3569.1,3569.0,0.8159]
[1754313134442,1.82238718,3569.1,3569.0,1.0167]
[1754313134942,1.82238718,3569.1,3569.0,0.5206]
[1754313135536,1.82238718,3569.1,3569.0,1.0167]
[1754313135843,1.82238718,3569.1,3569.0,1.3199]
[1754313136035,1.58968718,3569.1,3569.0,1.3199]
[1754313136336,1.58968718,3569.1,3569.0,1.779]
[1754313137738,1.33488718,3569.1,3569.0,1.779]
[1754313137940,0.15348718,3569.1,3569.0,1.779]
[1754313138637,19.7915,3569.2,3569.1,0.96823]
[1754313138832,19.94498718,3569.2,3569.1,1.88023]
[1754313139037,20.40958718,3569.2,3569.1,2.33933]
[1754313140241,20.61488718,3569.2,3569.1,2.33933]
[1754313140432,0.15348718,3569.2,3569.1,2.33933]
[1754313140634,0.15348718,3569.2,3568.3,3.2078]
[1754313140835,1.6689,3568.4,3568.3,0.56044]
[1754313141035,21.09638718,3568.4,3568.3,1.08104]
[1754313141241,1.27725,3568.3,3568.2,0.56046]
[1754313141546,1.6689,3568.3,3568.2,1.58506]
[1754313141744,1.58968718,3568.3,3568.2,2.33946]
[1754313142045,1.33488718,3568.3,3568.2,2.33946]
[1754313142351,0.15348718,3568.3,3568.2,2.33946]
[1754313142642,19.274,3568.4,3568.3,1.779]
[1754313142842,19.42748718,3568.4,3568.3,1.779]
[1754313144052,19.274,3568.4,3568.3,1.779]
[1754313147448,20.7102,3568.4,3568.3,1.779]
[1754313147758,20.9429,3568.4,3568.3,0.8238]
[1754313148052,21.09638718,3568.4,3568.3,0.3135]
[1754313148352,0.7168,3568.1,3568.0,1.3199]
[1754313148654,20.86368718,3568.1,3568.0,1.3199]
[1754313148848,20.7102,3568.1,3568.0,1.3199]
[1754313149448,20.7102,3568.1,3568.0,0.3135]
[1754313149449,21.09638718,3568.1,3568.0,0.3135]
[1754313149948,21.09638718,3568.1,3568.0,0.8159]
[1754313150255,20.86368718,3568.1,3568.0,1.3199]
[1754313150645,1.4009,3569.0,3568.5,0.7111]
[1754313150646,1.53652,3568.6,3568.5,0.7111]
[1754313150845,1.53652,3568.6,3568.2,1.62836]
[1754313150846,1.99665,3568.3,3568.2,0.5024]
[1754313151048,1.99665,3568.3,3568.2,0.7032]
[1754313151049,20.86368718,3568.3,3568.2,0.7032]
[1754313151245,20.60888718,3568.3,3568.2,1.779]
[1754313151646,19.274,3568.3,3568.2,1.779]
[1754313152649,3.2078,3569.0,3568.9,1.27146]
[1754313152956,40.8316,3569.4,3569.3,1.779]
[1754313153151,60.1056,3569.4,3569.3,1.779]
[1754313153360,60.25908718,3569.4,3569.3,1.779]
[1754313153651,60.51388718,3569.4,3569.3,1.779]
[1754313154046,60.74658718,3569.4,3569.3,0.3135]
[1754313154254,0.7168,3569.1,3569.0,2.02583]
[1754313154445,20.86368718,3569.1,3569.0,2.02583]
[1754313154649,20.7102,3569.1,3569.0,2.02583]
[1754313154846,20.7102,3569.1,3569.0,2.33933]
[1754313155650,1.4362,3568.9,3568.8,0.56037]
[1754313155854,20.9429,3568.9,3568.8,0.56037]
[1754313156049,21.09638718,3568.9,3568.8,0.56037]
[1754313156950,21.65675718,3568.9,3568.8,0.56037]
[1754313157358,0.6699,3568.7,3568.6,0.3135]
[1754313157554,1.27721,3568.6,3568.5,0.56041]
[1754313157748,2.38279718,3568.6,3568.5,0.87391]
[1754313157953,2.38279718,3568.6,3568.5,1.37631]
[1754313158159,2.15009718,3568.6,3568.5,1.38421]
[1754313158359,2.15009718,3568.6,3568.5,2.33941]
[1754313159058,1.58968718,3568.6,3568.5,1.779]
[1754313159453,1.58968718,3568.6,3568.5,2.33942]
[1754313159648,0.66498718,3568.6,3568.5,2.33942]
[1754313160362,19.273,3568.7,3568.6,1.1793]
[1754313160661,19.42648718,3568.7,3568.6,1.7967]
[1754313160858,20.41128718,3568.7,3568.6,1.7967]
[1754313161056,20.61588718,3568.7,3568.6,1.7967]
[1754313161259,20.87058718,3568.7,3568.6,1.7967]
[1754313161759,20.61588718,3568.7,3568.6,1.7967]
[1754313162160,20.87058718,3568.7,3568.6,1.7967]
[1754313162361,19.42648718,3568.7,3568.6,1.3449]
[1754313162659,19.42648718,3568.7,3568.6,1.7967]
[1754313166061,0.4797,3569.3,3568.7,0.3166]
[1754313166262,19.7517,3569.2,3569.1,1.7967]
[1754313166567,20.91265214,3569.2,3569.1,1.7967]
[1754313166865,21.25913932,3569.2,3569.1,1.7967]
[1754313167066,22.27874932,3569.2,3569.1,1.7967]
[1754313167771,22.14056669,3569.2,3569.1,1.7967]
[1754313168959,20.86958718,3569.2,3569.1,1.7967]
[1754313169155,1.25912321,3569.8,3569.7,0.3008]
[1754313169365,1.25912321,3569.8,3569.7,1.2694]
[1754313169366,21.35941793,3569.8,3569.7,1.2694]
[1754313169561,21.25820511,3569.8,3569.7,1.7967]
[1754313170467,21.12002531,3569.8,3569.7,1.7967]
[1754313170663,19.42448718,3569.8,3569.7,1.7967]
[1754313171071,19.271,3569.8,3569.7,1.7967]
[1754313171365,3.2078,3569.9,3569.8,0.56022]
[1754313171569,19.98121667,3569.9,3569.8,2.35692]
[1754313171866,19.271,3569.9,3569.8,2.35692]
[1754313177775,19.5831,3569.9,3569.8,2.35692]
[1754313178778,19.271,3569.9,3569.8,2.35692]
[1754313181077,19.7507,3569.9,3569.8,2.35692]
[1754313181275,0.2547,3569.8,3569.1,3.5086]
[1754313181475,1.4441,3569.2,3569.1,5.56483]
[1754313181872,1.6767,3569.2,3569.1,5.56483]
[1754313182367,1.6767,3569.2,3569.1,5.0045]
[1754313182771,1.83018718,3569.2,3569.1,3.2078]
[1754313182978,0.95798,3568.8,3568.7,3.2078]
[1754313183175,21.65556718,3568.8,3568.7,3.2078]
[1754313183677,1.16,3568.7,3568.6,0.3008]
[1754313183878,1.4441,3568.7,3568.6,1.7967]
[1754313184075,1.83018718,3568.7,3568.6,1.3449]
[1754313184374,1.59758718,3568.7,3568.6,1.7967]
[1754313185279,1.59758718,3568.7,3568.6,1.3449]
[1754313185479,1.59758718,3568.7,3568.6,0.504]
[1754313185480,1.83018718,3568.7,3568.6,0.504]
[1754313185675,1.83018718,3568.7,3568.6,0.3008]
[1754313186181,1.59758718,3568.7,3568.6,1.3449]
[1754313186377,1.59758718,3568.7,3568.6,1.7967]
[1754313186576,1.59758718,3568.7,3568.6,1.3449]
[1754313186978,1.83018718,3568.7,3568.6,1.3449]
[1754313187574,1.6767,3568.4,3568.3,0.56044]
[1754313187779,21.09518718,3568.4,3568.3,0.56044]
[1754313188481,21.09518718,3568.4,3568.3,0.3008]
[1754313188985,21.09518718,3568.4,3567.2,2.51779251]
[1754313188986,0.7097,3567.7,3567.6,1.07735]
[1754313189186,20.86258718,3567.7,3567.6,1.90545]
[1754313189485,20.86258718,3567.7,3567.6,2.35725]
[1754313189890,19.41848718,3567.7,3567.6,2.35725]
[1754313190380,20.84638718,3567.7,3567.6,2.35725]
[1754313191383,20.84638718,3567.7,3567.6,2.08742197]
[1754313192182,20.59148718,3567.7,3567.6,2.08742197]
[1754313193186,20.84638718,3567.7,3567.6,2.08742197]
[1754313193385,20.84638718,3567.7,3567.6,1.7967]
[1754313193583,2.22758,3567.6,3567.4,0.56059]
[1754313193779,1.4348,3567.4,3567.3,1.2796]
[1754313193979,1.58828718,3567.4,3567.3,1.0121]
[1754313194180,1.58828718,3567.4,3567.3,1.4762]
[1754313194478,1.58828718,3567.4,3567.3,1.7753]
[1754313195375,0.2123,3566.9,3566.8,0.2991]
[1754313195578,20.7038,3566.9,3566.8,0.5004]
[1754313195781,20.7038,3566.9,3566.6,3.6719]
[1754313195782,0.7166,3566.7,3566.6,4.3691]
[1754313195976,0.56074,3566.5,3566.4,0.2931]
[1754313196189,20.85728718,3566.5,3566.4,1.4604]
[1754313196481,20.85728718,3566.5,3566.4,1.7753]
[1754313198389,21.08948718,3566.5,3566.4,0.5064]
[1754313198592,21.08948718,3566.5,3566.4,1.3112]
[1754313198894,20.85728718,3566.5,3566.4,1.7753]
[1754313199289,20.85728718,3566.5,3566.4,1.2636]
[1754313199581,21.08948718,3566.5,3566.4,0.7995]
[1754313199784,21.08948718,3566.5,3566.4,1.3112]
[1754313199981,21.08948718,3566.5,3566.4,1.87195]
[1754313200190,20.85728718,3566.5,3566.4,2.33605]
[1754313201189,0.15348718,3566.5,3566.4,2.33605]
[1754313201387,20.39798718,3566.5,3566.4,2.33605]
[1754313201587,20.86128718,3566.5,3566.4,2.33605]
[1754313202993,0.7166,3566.1,3566.0,2.33612]
[1754313203194,1.1799,3566.1,3566.0,2.33612]
[1754313203497,0.3011,3566.1,3566.0,2.33612]
[1754313203698,19.273,3566.2,3566.0,2.33612]
[1754313203885,19.273,3566.2,3566.0,1.55712]
[1754313204092,19.273,3566.2,3566.1,1.7753]
[1754313204398,4.6095,3566.9,3566.8,0.6972]
[1754313204399,3.2078,3566.9,3566.8,0.6972]
[1754313204699,1.4348,3567.1,3567.0,1.27965]
[1754313204891,20.7098,3567.1,3567.0,1.27965]
[1754313205091,20.86328718,3567.1,3567.0,1.27965]
[1754313205296,21.09548718,3567.1,3567.0,1.57875]
[1754313205498,20.86328718,3567.1,3567.0,1.87185]
[1754313205893,20.86328718,3567.1,3567.0,2.33595]
[1754313206288,20.86328718,3567.1,3566.6,1.40181]
[1754313206289,1.82048718,3567.1,3566.9,0.56066]
[1754313206590,21.50166,3567.0,3566.9,0.56066]
[1754313206796,21.65514718,3567.0,3566.9,0.56066]
[1754313206995,1.27729,3566.9,3566.8,0.56068]
[1754313207194,20.7098,3566.9,3566.8,0.85978]
[1754313207397,20.86328718,3566.9,3566.8,1.57878]
[1754313207596,20.86328718,3566.9,3566.8,1.87188]
[1754313208293,20.86328718,3566.9,3566.8,1.3112]
[1754313208900,21.09548718,3566.9,3566.8,1.3112]
[1754313209102,20.86328718,3566.9,3566.8,1.7753]
[1754313209902,21.09548718,3566.9,3566.8,1.3112]
[1754313210396,20.86328718,3566.9,3566.8,1.3112]
[1754313210704,20.86328718,3566.9,3566.8,1.7753]
[1754313211504,1.58828718,3566.9,3566.8,1.3112]
[1754313211703,20.86328718,3566.9,3566.8,1.3112]
[1754313211901,20.86328718,3566.9,3566.8,1.7753]
[1754313212399,20.60838718,3566.9,3566.8,1.7753]
[1754313212902,19.72958718,3566.9,3566.8,1.7753]